[Event "Elegant 1st Division League 2024"]
[Site "Dhaka"]
[Date "2024.07.11"]
[Round "1.23"]
[White "Saparya Ghosh"]
[Black "Asaduzzaman, Ahad"]
[Result "1-0"]
[Annotator "NA RC"]
[ECO "A53"]
[WhiteElo "1833"]
[BlackElo "1855"]
[PlyCount "85"]
[EventDate "2024.07.10"]
[EventType "team-tourn"]
[EventCountry "BAN"]
[SourceTitle "playchess.com"]
[Source "ChessBase"]
[SourceQuality "1"]
[TimeControl "5400+30"]

1. d4 {[%emt 0:00:34]} Nf6 {[%emt 0:00:46]} 2. c4 {[%emt 0:00:07]} Nc6 {[%emt 0:00:34]} 3. Nf3 {[%emt 0:01:07]} d6 {[%emt 0:04:15]} 4. d5 {[%emt 0:01:34]} Nb8 {[%emt 0:00:34]} 5. Nc3 {[%emt 0:00:18]} e5 {[%emt 0:24:39]} 6. dxe6 {[%emt 0:01:42] A53: Altindisch.} fxe6 {[%emt 0:00:39]} 7. e3 {[%emt 0:08:07]} Nc6 {[%emt 0:00:30]} 8. h4 {[%emt 0:02:40]} b6 {[%emt 0:18:07]} 9. h5 {[%emt 0:07:47]} Bb7 {[%emt 0:01:29]} 10. b3 {[%emt 0:12:28]} Qd7 {[%emt 0:03:16]} 11. Bb2 {[%emt 0:01:21]} Be7 {[%emt 0:01:29]} 12. Qd2 {[%emt 0:02:45]} O-O-O {[%emt 0:00:54]} 13. O-O-O {[%emt 0:00:53]} Rhf8 {[%emt 0:01:36]} 14. Bd3 {[%emt 0:03:09]} Ne5 {[%emt 0:06:00]} 15. Nxe5 {[%emt 0:13:29]} dxe5 {[%emt 0:00:04]} 16. Qe2 {[%emt 0:02:31]} Qc6 {[%emt 0:02:30]} 17. f3 {[%emt 0:02:45]} a6 {[%emt 0:03:08]} 18. Kb1 {[%emt 0:06:26]} Qc5 {[%emt 0:02:13]} 19. Na4 {[%emt 0:01:26]} Qa5 {[%emt 0:05:52]} 20. c5 {[%emt 0:08:33]} Bxc5 $16 {[%emt 0:03:21]} (20... e4 $142 21. Bc4 Rxd1+ 22. Qxd1 (22. Rxd1 exf3 23. gxf3 Bxc5 $11) 22... b5) 21. Bxe5 {[%emt 0:01:24]} Bb4 {[%emt 0:01:49]} 22. Qb2 {[%emt 0:07:02]} b5 {[%emt 0:06:51]} 23. Nc3 {[%emt 0:10:33]} Ba3 {[%emt 0:03:25]} 24. Qa1 {[%emt 0:01:59]} h6 {[%emt 0:02:10]} 25. Ne2 {[%emt 0:00:37]} Rf7 {[%emt 0:03:57]} 26. Nd4 {[%emt 0:01:20]} Re8 {[%emt 0:02:01]} 27. Bg6 {[%emt 0:00:22]} Rfe7 {[%emt 0:01:16]} 28. Bxe8 {[%emt 0:00:14]} Nxe8 {[%emt 0:00:18]} 29. Nc2 {[%emt 0:00:15]} Bc5 {[%emt 0:00:28]} 30. Qc3 {[%emt 0:00:12]} b4 {[%emt 0:00:42]} 31. Qd3 {[%emt 0:00:25]} Bd6 {[%emt 0:00:25]} 32. Bb2 {[%emt 0:00:28]} Bc6 {[%emt 0:00:22]} 33. Nd4 {[%emt 0:00:15]} Bd7 {[%emt 0:00:08]} 34. Qe4 {[%emt 0:00:15]} Qd5 {[%emt 0:00:35]} 35. Qd3 {[%emt 0:01:04]} Qa5 {[%emt 0:00:22]} 36. Rc1 {[%emt 0:00:19]} Nf6 {[%emt 0:00:59]} 37. e4 {[%emt 0:00:23]} Kb7 {[%emt 0:00:21]} 38. Qc4 {[%emt 0:00:16]} c5 {[%emt 0:00:38]} 39. e5 {[%emt 0:01:04]} Bb5 {[%emt 0:00:35]} 40. Nxb5 {[%emt 0:00:18]} axb5 {[%emt 0:00:07]} 41. Qe2 {[%emt 0:00:15]} Bc7 {[%emt 0:00:54]} 42. exf6 {[%emt 0:00:08]} gxf6 {[%emt 0:00:02]} 43. Rxc5 {[%emt 0:00:14]} 1-0

[Event "Elegant 1st Division League 2024"]
[Site "Dhaka"]
[Date "2024.07.11"]
[Round "1.24"]
[White "Shejal Sahil Sanjay"]
[Black "Ajraf, Anan"]
[Result "1-0"]
[Annotator "NA RC"]
[ECO "B13"]
[WhiteElo "1750"]
[BlackElo "1781"]
[PlyCount "133"]
[EventDate "2024.07.10"]
[EventType "team-tourn"]
[EventCountry "BAN"]
[SourceTitle "playchess.com"]
[Source "ChessBase"]
[SourceQuality "1"]
[TimeControl "5400+30"]

1. e4 {[%emt 0:00:11]} c6 {[%emt 0:00:08]} 2. d4 {[%emt 0:00:34]} d5 {[%emt 0:00:14]} 3. exd5 {[%emt 0:00:01]} cxd5 {[%emt 0:00:09]} 4. Bd3 {[%emt 0:00:03]} Nf6 {[%emt 0:00:20]} 5. Bf4 {[%emt 0:00:06]} Nc6 {[%emt 0:00:13]} 6. c3 {[%emt 0:00:01]} Bg4 {[%emt 0:00:13]} 7. Qb3 {[%emt 0:00:07]} Qd7 {[%emt 0:00:26]} 8. Nd2 {[%emt 0:01:27]} e6 {[%emt 0:00:19]} 9. Ngf3 {[%emt 0:00:03]} Bd6 {[%emt 0:00:09]} 10. Ne5 {[%emt 0:04:50]} Qc7 {[%emt 0:00:53]} 11. Nxg4 {[%emt 0:01:31]} Bxf4 {[%emt 0:00:12]} 12. Nxf6+ {[%emt 0:02:22]} gxf6 {[%emt 0:00:14]} 13. g3 {[%emt 0:00:08]} Bh6 {[%emt 0:03:27]} 14. Bb5 {[%emt 0:00:20]} O-O-O {[%emt 0:02:07]} 15. Qa3 {[%emt 0:06:16]} Kb8 {[%emt 0:04:13]} 16. Bxc6 {[%emt 0:00:50]} Qxc6 {[%emt 0:01:29]} 17. Qc5 {[%emt 0:01:39]} Qxc5 {[%emt 0:01:22]} 18. dxc5 {[%emt 0:00:02]} Bf8 {[%emt 0:01:03]} 19. b4 {[%emt 0:00:11]} d4 {[%emt 0:04:03]} 20. c4 {[%emt 0:01:15]} e5 {[%emt 0:04:47]} 21. Ke2 {[%emt 0:05:16]} d3+ {[%emt 0:05:29]} 22. Kf3 {[%emt 0:02:23]} f5 {[%emt 0:01:41]} 23. Rad1 {[%emt 0:02:52]} Bh6 {[%emt 0:02:27]} 24. Nb3 {[%emt 0:00:47]} e4+ {[%emt 0:00:31]} 25. Kg2 {[%emt 0:00:01]} f4 {[%emt 0:01:03]} 26. gxf4 {[%emt 0:08:59]} Rhg8+ {[%emt 0:01:31]} 27. Kh3 {[%emt 0:02:19]} Bxf4 {[%emt 0:00:47]} 28. Rhg1 {[%emt 0:02:04]} Rxg1 {[%emt 0:09:17]} 29. Rxg1 {[%emt 0:00:13]} d2 {[%emt 0:00:31]} 30. Rd1 {[%emt 0:00:54]} f5 {[%emt 0:00:29]} 31. Kg2 {[%emt 0:03:43]} Bh6 {[%emt 0:00:34]} 32. Kf1 {[%emt 0:00:49]} Kc7 {[%emt 0:06:31]} 33. Ke2 {[%emt 0:00:38]} f4 {[%emt 0:07:25]} 34. Nxd2 {[%emt 0:02:55]} e3 {[%emt 0:12:09]} 35. fxe3 {[%emt 0:01:26]} fxe3 {[%emt 0:00:20]} 36. Nf3 {[%emt 0:00:27]} Rg8 {[%emt 0:01:41]} 37. Rg1 {[%emt 0:03:21]} Rf8 {[%emt 0:00:41]} 38. Rg2 {[%emt 0:00:37]} Rf4 {[%emt 0:02:10]} 39. Ne5 {[%emt 0:03:03]} Rd4 {[%emt 0:09:38]} 40. Ng4 {[%emt 0:08:56]} Rd2+ {[%emt 0:04:43]} 41. Kf3 {[%emt 0:00:18]} Rxg2 {[%emt 0:00:27]} 42. Kxg2 {[%emt 0:00:03]} e2 {[%emt 0:00:24]} 43. Kf2 {[%emt 0:00:09]} Bd2 {[%emt 0:00:14]} 44. Kxe2 {[%emt 0:00:02]} Bxb4 {[%emt 0:01:03]} 45. Nf6 {[%emt 0:00:02]} Bxc5 {[%emt 0:01:29]} 46. Nxh7 {[%emt 0:00:02]} Be7 {[%emt 0:00:25]} 47. Kf3 {[%emt 0:04:24]} Kc6 {[%emt 0:00:49]} 48. Kg4 {[%emt 0:00:28]} Kc5 {[%emt 0:00:33]} 49. Ng5 {[%emt 0:00:43]} Kxc4 {[%emt 0:01:52]} 50. h4 {[%emt 0:00:05]} Kb4 {[%emt 0:04:49]} 51. Kf5 {[%emt 0:02:43]} Ka3 {[%emt 0:00:53]} 52. h5 {[%emt 0:05:32]} Bf8 {[%emt 0:02:30]} 53. Kg6 {[%emt 0:01:52]} Kxa2 {[%emt 0:00:50]} 54. Ne6 {[%emt 0:00:02]} Bb4 {[%emt 0:00:54]} 55. h6 {[%emt 0:00:22]} Bc3 {[%emt 0:02:42]} 56. Ng7 {[%emt 0:00:02]} b5 {[%emt 0:00:49]} 57. h7 {[%emt 0:00:03]} b4 {[%emt 0:00:57]} 58. h8=Q {[%emt 0:00:08]} b3 {[%emt 0:00:41]} 59. Qh2+ {[%emt 0:05:49]} b2 {[%emt 0:00:18]} 60. Qc2 {[%emt 0:00:03]} a5 {[%emt 0:01:02]} 61. Nf5 {[%emt 0:01:17]} Bb4 {[%emt 0:00:59]} 62. Ne3 {[%emt 0:01:58]} Ka1 {[%emt 0:00:27]} 63. Qa4+ {[%emt 0:00:11]} Kb1 {[%emt 0:00:08]} 64. Kf5 {[%emt 0:00:27]} Bd2 {[%emt 0:00:31]} 65. Nc4 {[%emt 0:00:13]} Kc1 {[%emt 0:00:56]} 66. Qa3 {[%emt 0:00:17]} Bc3 {[%emt 0:00:37]} 67. Qxc3+ {[%emt 0:23:05]} 1-0

[Event "Elegant 1st Division League 2024"]
[Site "Dhaka"]
[Date "2024.07.12"]
[Round "2.1"]
[White "Ahmed, Mahtabuddin"]
[Black "Islam, Sheik   Khairul"]
[Result "1-0"]
[Annotator "RC"]
[ECO "A36"]
[WhiteElo "1974"]
[BlackElo "1948"]
[PlyCount "47"]
[EventDate "2024.07.10"]
[EventType "team-tourn"]
[EventCountry "BAN"]
[SourceTitle "playchess.com"]
[Source "ChessBase"]
[SourceQuality "1"]
[TimeControl "5400+30"]

1. c4 {[%emt 0:00:03]} e5 {[%emt 0:04:45]} 2. Nc3 {[%emt 0:00:54]} c5 {[%emt 0:01:17]} 3. g3 {[%emt 0:01:24]} Nc6 {[%emt 0:01:10]} 4. Bg2 {[%emt 0:00:13]} d6 {[%emt 0:05:21]} 5. e3 {[%emt 0:02:47]} Be6 {[%emt 0:00:16]} 6. b3 {[%emt 0:00:28]} f5 {[%emt 0:01:11]} 7. Nge2 {[%emt 0:01:14]} e4 {[%emt 0:01:20]} 8. d3 {[%emt 0:04:35]} exd3 {[%emt 0:06:06]} 9. Nf4 {[%emt 0:03:18]} Bf7 {[%emt 0:01:27]} 10. Qxd3 {[%emt 0:00:20]} Qd7 {[%emt 0:01:06]} 11. Bb2 {[%emt 0:02:21]} Nf6 {[%emt 0:00:07]} 12. Bh3 {[%emt 0:03:08]} Ng4 {[%emt 0:03:50]} 13. Nfd5 {[%emt 0:05:57]} Nce5 {[%emt 0:00:53]} 14. Qe2 {[%emt 0:01:05]} Be7 {[%emt 0:00:35]} 15. f4 {[%emt 0:06:48]} Nc6 {[%emt 0:02:39]} 16. Bxg4 {[%emt 0:06:31]} fxg4 {[%emt 0:01:19]} 17. Rd1 {[%emt 0:01:11]} h5 {[%emt 0:04:17]} 18. Nxe7 {[%emt 0:01:31]} Nxe7 {[%emt 0:02:14]} 19. Nb5 {[%emt 0:00:35]} Nf5 {[%emt 0:00:18]} 20. e4 {[%emt 0:01:19]} O-O {[%emt 0:00:21]} 21. O-O {[%emt 0:02:31]} a6 {[%emt 0:00:13]} 22. Na3 {[%emt 0:02:17]} Ne7 {[%emt 0:05:53]} 23. Qd3 {[%emt 0:01:26]} Rad8 {[%emt 0:00:39]} 24. Qc3 {[%emt 0:00:25]} 1-0

[Event "Elegant 1st Division League 2024"]
[Site "Dhaka"]
[Date "2024.07.12"]
[Round "2.2"]
[White "Faisal, Hossain"]
[Black "Shourya Paul"]
[Result "0-1"]
[Annotator "NA RC"]
[ECO "C20"]
[WhiteElo "1872"]
[BlackElo "1813"]
[PlyCount "66"]
[EventDate "2024.07.10"]
[EventType "team-tourn"]
[EventCountry "BAN"]
[SourceTitle "playchess.com"]
[Source "ChessBase"]
[SourceQuality "1"]
[TimeControl "5400+30"]

1. e4 {[%emt 1:31:00]} e5 {[%emt 0:00:17]} 2. g3 {[%emt 0:00:00]} Nf6 {[%emt 0:02:20]} 3. Bg2 {[%emt 0:00:00]} Nc6 {[%emt 0:02:25]} 4. Ne2 {[%emt 0:00:00]} Bc5 {[%emt 0:01:45]} 5. c3 {[%emt 0:00:00]} d5 {[%emt 0:04:45]} 6. exd5 {[%emt 0:00:00] C20: 1 e4 e5: Unusual White second moves.} Nxd5 {[%emt 0:00:15]} 7. O-O {[%emt 0:00:00]} Be6 {[%emt 0:03:15]} 8. b4 {[%emt 0:00:00]} Be7 {[%emt 0:02:42]} 9. b5 {[%emt 0:04:00]} Na5 {[%emt 0:01:36]} 10. Qa4 {[%emt 0:00:30]} c6 {[%emt 0:02:33]} 11. d4 {[%emt 0:00:00]} f6 {[%emt 0:17:50]} 12. Bd2 $2 {[%emt 0:00:00]} (12. Rd1 $16 {and life is bright.}) 12... O-O {[%emt 0:03:40]} 13. c4 {[%emt 0:00:00] [#]} Nxc4 $1 {[%emt 0:00:28]} 14. bxc6 {[%emt 0:00:00]} (14. Qxc4 Nf4 15. d5 Bxd5 16. Bxd5+ cxd5 $19) 14... Ncb6 {[%emt 0:04:31]} 15. Qb5 {[%emt 0:00:00]} a6 {[%emt 0:01:34]} 16. Qb2 {[%emt 0:00:00]} bxc6 {[%emt 0:02:38]} 17. dxe5 {[%emt 0:00:00]} Nc4 {[%emt 0:01:52]} 18. Qc1 {[%emt 0:00:00]} Nxe5 {[%emt 0:03:44]} 19. Nd4 {[%emt 0:00:00]} Bf7 {[%emt 0:18:41]} 20. Nxc6 {[%emt 0:00:00]} Nxc6 {[%emt 0:00:03]} 21. Qxc6 {[%emt 0:00:00]} Rc8 {[%emt 0:04:16]} 22. Qa4 {[%emt 0:00:00]} Nb6 {[%emt 0:00:59]} 23. Qa5 {[%emt 0:00:00]} Rc5 {[%emt 0:03:11]} 24. Qb4 {[%emt 0:00:00]} Rd5 {[%emt 0:02:06]} 25. Qc3 {[%emt 0:00:00]} Rd3 {[%emt 0:01:18]} 26. Qc1 {[%emt 0:00:00]} Nc4 {[%emt 0:03:26]} 27. Bc3 {[%emt 0:00:00]} Bc5 {[%emt 0:01:51]} 28. Be4 {[%emt 0:00:00]} Rd6 {[%emt 0:00:32]} 29. a3 {[%emt 0:00:00]} a5 {[%emt 0:00:30]} 30. Ra2 {[%emt 0:00:00] [#]} Ne3 $1 {[%emt 0:00:52]} 31. fxe3 {[%emt 0:00:00]} Bxa2 {[%emt 0:00:11]} 32. Bxf6 {[%emt 0:00:00]} Rdxf6 {[%emt 0:00:55]} 33. Rxf6 {[%emt 0:00:00]} Qxf6 $19 {[%emt 0:00:03]} 0-1

[Event "Elegant 1st Division League 2024"]
[Site "Dhaka"]
[Date "2024.07.12"]
[Round "2.3"]
[White "Shankhodip De"]
[Black "Asaduzzaman, Ahad"]
[Result "1-0"]
[Annotator "RC"]
[ECO "A53"]
[WhiteElo "1942"]
[BlackElo "1855"]
[PlyCount "75"]
[EventDate "2024.07.10"]
[EventType "team-tourn"]
[EventCountry "BAN"]
[SourceTitle "playchess.com"]
[Source "ChessBase"]
[SourceQuality "1"]
[TimeControl "5400+30"]

1. d4 {[%emt 0:00:23]} d6 {[%emt 0:00:28]} 2. e4 {[%emt 0:04:14]} c6 {[%emt 0:01:05]} 3. c4 {[%emt 0:03:27]} Nf6 {[%emt 0:01:02]} 4. Nc3 {[%emt 0:00:04]} Qa5 {[%emt 0:00:17]} 5. Bd3 {[%emt 0:01:59]} Nbd7 {[%emt 0:01:40]} 6. Nf3 {[%emt 0:03:32]} e5 {[%emt 0:03:12]} 7. O-O {[%emt 0:02:20]} Be7 {[%emt 0:00:13]} 8. a3 {[%emt 0:02:41]} O-O {[%emt 0:00:28]} 9. d5 {[%emt 0:01:16]} Qc7 {[%emt 0:02:15]} 10. h3 {[%emt 0:02:29]} Re8 {[%emt 0:01:23]} 11. Be3 {[%emt 0:00:44]} Nf8 {[%emt 0:04:15]} 12. b4 {[%emt 0:03:29]} Ng6 {[%emt 1:20:12]} 13. Rc1 {[%emt 0:06:21]} Qd8 {[%emt 0:00:00]} 14. Be2 {[%emt 0:12:47]} Nh5 {[%emt 0:00:00]} 15. c5 {[%emt 0:05:36]} Nhf4 {[%emt 0:00:00]} 16. Bc4 {[%emt 0:01:33]} Bf8 {[%emt 0:00:00]} 17. Kh2 {[%emt 0:07:32]} dxc5 {[%emt 0:00:00]} 18. bxc5 {[%emt 0:00:48]} Qa5 {[%emt 0:00:00]} 19. d6 {[%emt 0:01:24]} Be6 {[%emt 0:00:00]} 20. Qb3 {[%emt 0:01:21]} Bxc4 {[%emt 0:00:00]} 21. Qxc4 {[%emt 0:01:05]} Qd8 {[%emt 0:00:00]} 22. Bxf4 {[%emt 0:13:50]} Nxf4 {[%emt 0:00:00]} 23. g3 {[%emt 0:00:03]} Ng6 {[%emt 0:00:00]} 24. h4 {[%emt 0:00:07]} Qd7 {[%emt 0:00:00]} 25. Nd1 {[%emt 0:05:13]} b6 {[%emt 0:00:00]} 26. Ne3 {[%emt 0:01:02]} bxc5 {[%emt 0:00:00]} 27. Rfd1 {[%emt 0:01:06]} Re6 {[%emt 0:00:00]} 28. Nf5 {[%emt 0:00:34]} Rf6 {[%emt 0:00:00]} 29. Qxc5 {[%emt 0:01:50]} Rxf5 {[%emt 0:00:00]} 30. exf5 {[%emt 0:00:12]} Qxf5 {[%emt 0:00:00]} 31. Qxc6 {[%emt 0:00:48]} Rd8 {[%emt 0:00:00]} 32. Rc4 {[%emt 0:03:10]} h6 {[%emt 0:00:00]} 33. Kg2 {[%emt 0:01:25]} Qe6 {[%emt 0:00:45]} 34. h5 {[%emt 0:01:28]} Nh8 {[%emt 0:02:26]} 35. d7 {[%emt 0:01:25]} Qf5 {[%emt 0:01:41]} 36. g4 {[%emt 0:00:54]} Qf6 {[%emt 0:00:51]} 37. Qxf6 {[%emt 0:00:14]} gxf6 {[%emt 0:00:03]} 38. Nh4 {[%emt 0:00:26]} 1-0

[Event "Elegant 1st Division League 2024"]
[Site "Dhaka"]
[Date "2024.07.12"]
[Round "2.4"]
[White "Shejal Sahil Sanjay"]
[Black "Aiyan, Rahman"]
[Result "1-0"]
[Annotator "NA RC"]
[ECO "C24"]
[WhiteElo "1750"]
[BlackElo "1847"]
[PlyCount "53"]
[EventDate "2024.07.10"]
[EventType "team-tourn"]
[EventCountry "BAN"]
[SourceTitle "playchess.com"]
[Source "ChessBase"]
[SourceQuality "1"]
[TimeControl "5400+30"]

1. e4 {[%emt 0:00:23]} e5 {[%emt 0:00:21]} 2. d4 {[%emt 0:00:03]} Nf6 {[%emt 0:02:55]} 3. dxe5 {[%emt 0:02:11]} Nxe4 {[%emt 0:00:12]} 4. Bc4 {[%emt 0:01:00]} Nc5 {[%emt 0:04:37]} 5. Nf3 {[%emt 0:02:18]} Be7 {[%emt 0:01:26]} 6. Nc3 {[%emt 0:01:27] C24: Bishop's Opening: 2...Nf6.} c6 {[%emt 0:03:09]} 7. Bf4 {[%emt 0:01:09]} b5 {[%emt 0:03:54]} 8. Bb3 {[%emt 0:00:52]} O-O {[%emt 0:02:55]} 9. O-O {[%emt 0:03:00]} b4 {[%emt 0:03:59]} 10. Ne2 {[%emt 0:01:08]} Ne6 {[%emt 0:02:34]} 11. Bg3 {[%emt 0:01:30]} a5 {[%emt 0:06:05]} 12. c4 {[%emt 0:01:35]} Na6 {[%emt 0:02:49]} 13. Bc2 {[%emt 0:00:45]} Nac5 {[%emt 0:03:04]} 14. Nfd4 {[%emt 0:01:37]} g6 {[%emt 0:07:03]} 15. f4 {[%emt 0:00:14]} Nxd4 {[%emt 0:00:18]} 16. Nxd4 {[%emt 0:00:34]} d5 {[%emt 0:02:38]} 17. Nxc6 {[%emt 0:00:33]} Qc7 {[%emt 0:00:23]} 18. cxd5 {[%emt 0:00:57]} Ba6 {[%emt 0:00:29]} 19. Rf2 {[%emt 0:00:25]} f5 {[%emt 0:00:24]} 20. Rc1 {[%emt 0:01:13]} Bb7 {[%emt 0:51:15]} 21. Bb3 {[%emt 0:01:06]} Kg7 {[%emt 0:00:00]} 22. Nxe7 {[%emt 0:00:17]} Qxe7 {[%emt 0:00:00]} 23. d6 {[%emt 0:00:01]} Qd8 {[%emt 0:00:00]} 24. Rxc5 {[%emt 0:00:03]} Rc8 {[%emt 0:00:00]} 25. Qd4 {[%emt 0:00:21]} Qb6 {[%emt 0:00:00]} 26. Rc7+ {[%emt 0:00:10]} Rxc7 {[%emt 0:00:00]} 27. Qxb6 {[%emt 0:00:13]} 1-0

[Event "Elegant 1st Division League 2024"]
[Site "Dhaka"]
[Date "2024.07.12"]
[Round "2.6"]
[White "Shafiqul, Islam"]
[Black "Shatadru Shovan, Dey"]
[Result "1-0"]
[Annotator "RC"]
[ECO "A00"]
[WhiteElo "1937"]
[BlackElo "1879"]
[PlyCount "87"]
[EventDate "2024.07.10"]
[EventType "team-tourn"]
[EventCountry "BAN"]
[SourceTitle "playchess.com"]
[Source "ChessBase"]
[SourceQuality "1"]
[TimeControl "5400+30"]

1. Nf3 {[%emt 0:00:30]} Nf6 {[%emt 0:16:18]} 2. b4 {[%emt 0:00:54]} e6 {[%emt 0:00:57]} 3. a3 {[%emt 0:00:10]} c5 {[%emt 0:00:23]} 4. bxc5 {[%emt 0:01:22]} Bxc5 {[%emt 0:13:36]} 5. d4 {[%emt 0:00:15]} Be7 {[%emt 0:00:49]} 6. c4 {[%emt 0:00:55]} d5 {[%emt 0:00:22]} 7. e3 {[%emt 0:00:42]} O-O {[%emt 0:00:21]} 8. Bd3 {[%emt 0:00:30]} dxc4 {[%emt 0:00:10]} 9. Bxc4 {[%emt 0:00:14]} b6 {[%emt 1:02:04]} 10. O-O {[%emt 0:00:31]} Ba6 {[%emt 0:00:00]} 11. Nbd2 {[%emt 0:01:31]} b5 {[%emt 0:00:00]} 12. Bd3 {[%emt 0:01:01]} b4 {[%emt 0:00:00]} 13. Qe2 {[%emt 0:06:27]} Bxd3 {[%emt 0:00:00]} 14. Qxd3 {[%emt 0:00:12]} Nc6 {[%emt 0:00:00]} 15. Bb2 {[%emt 0:00:29]} Qd7 {[%emt 0:00:00]} 16. axb4 {[%emt 0:06:55]} Nxb4 {[%emt 0:00:00]} 17. Qe2 {[%emt 0:01:24]} Rfb8 {[%emt 0:00:00]} 18. Ne5 {[%emt 0:00:46]} Qe8 {[%emt 0:00:00]} 19. Rfc1 {[%emt 0:02:26]} a5 {[%emt 0:00:00]} 20. Ndc4 {[%emt 0:01:17]} Qb5 {[%emt 0:00:00]} 21. Qf3 {[%emt 0:00:59]} Ra6 {[%emt 0:00:00]} 22. g4 {[%emt 0:03:47]} Nc6 {[%emt 0:00:00]} 23. Bc3 {[%emt 0:14:12]} Nxe5 {[%emt 0:00:00]} 24. Nxe5 {[%emt 0:01:21]} h6 {[%emt 0:00:00]} 25. Be1 {[%emt 0:02:15]} Bd6 {[%emt 0:00:00]} 26. Nc4 {[%emt 0:04:23]} Bb4 {[%emt 0:00:00]} 27. Ne5 {[%emt 0:03:55]} Bd6 {[%emt 0:00:00]} 28. Nc4 {[%emt 0:08:54]} a4 {[%emt 0:00:00]} 29. e4 {[%emt 0:02:11]} Qb7 {[%emt 0:04:40]} 30. Nxd6 {[%emt 0:05:21]} Rxd6 {[%emt 0:00:07]} 31. d5 {[%emt 0:01:17]} Ra6 {[%emt 0:02:36]} 32. dxe6 {[%emt 0:04:00]} fxe6 {[%emt 0:00:18]} 33. Rc4 {[%emt 0:01:29]} Qb2 {[%emt 0:02:17]} 34. Bc3 {[%emt 0:03:43]} Qb3 {[%emt 0:00:04]} 35. Rc7 {[%emt 0:00:44]} e5 {[%emt 0:01:31]} 36. Kg2 {[%emt 0:01:16]} Qe6 {[%emt 0:00:25]} 37. h3 {[%emt 0:02:16]} Rb3 {[%emt 0:00:07]} 38. Rd1 {[%emt 0:01:40]} Rc6 {[%emt 0:00:24]} 39. Rd8+ {[%emt 0:00:59]} Kh7 {[%emt 0:00:26]} 40. Rxc6 {[%emt 0:01:41]} Qxc6 {[%emt 0:00:06]} 41. Qf5+ {[%emt 0:01:06]} g6 {[%emt 0:01:08]} 42. Qxe5 {[%emt 0:01:24]} Qb7 {[%emt 0:01:41]} 43. Qxf6 {[%emt 0:03:05]} Qxe4+ {[%emt 0:00:12]} 44. Kh2 {[%emt 0:00:30]} 1-0

[Event "Elegant 1st Division League 2024"]
[Site "Dhaka"]
[Date "2024.07.12"]
[Round "2.7"]
[White "S M Sharon"]
[Black "Soumyajit Das"]
[Result "1/2-1/2"]
[Annotator "RC"]
[ECO "C55"]
[WhiteElo "2047"]
[BlackElo "1850"]
[PlyCount "102"]
[EventDate "2024.07.10"]
[EventType "team-tourn"]
[EventCountry "BAN"]
[SourceTitle "playchess.com"]
[Source "ChessBase"]
[SourceQuality "1"]
[TimeControl "5400+30"]

1. e4 {[%emt 0:15:20]} e5 {[%emt 0:02:21]} 2. Nf3 {[%emt 0:00:22]} Nc6 {[%emt 0:00:34]} 3. Bc4 {[%emt 0:01:07]} Nf6 {[%emt 0:01:46]} 4. d3 {[%emt 0:00:39]} h6 {[%emt 0:04:31]} 5. c3 {[%emt 0:00:21]} d6 {[%emt 0:03:47]} 6. Nbd2 {[%emt 0:03:33]} Qe7 {[%emt 0:05:25]} 7. Nf1 {[%emt 0:01:31]} a6 {[%emt 0:07:47]} 8. Bb3 {[%emt 0:01:32]} g5 {[%emt 0:00:17]} 9. h3 {[%emt 0:01:28]} Be6 {[%emt 0:01:44]} 10. Ne3 {[%emt 0:01:26]} Qd7 {[%emt 0:02:02]} 11. Bxe6 {[%emt 0:03:14]} fxe6 {[%emt 0:00:06]} 12. Ng4 {[%emt 0:05:21]} Nxg4 {[%emt 0:10:38]} 13. hxg4 {[%emt 0:00:04]} Bg7 {[%emt 0:00:13]} 14. Nd2 {[%emt 0:04:53]} Rf8 {[%emt 0:07:32]} 15. Nf1 {[%emt 0:00:50]} Qf7 {[%emt 0:07:36]} 16. Qe2 {[%emt 0:56:49]} O-O-O {[%emt 0:03:09]} 17. Bd2 {[%emt 0:00:00]} Ne7 {[%emt 0:10:25]} 18. Ng3 {[%emt 0:00:00]} Ng6 {[%emt 0:01:10]} 19. Nh5 {[%emt 0:00:00]} Bh8 {[%emt 0:01:48]} 20. f3 {[%emt 0:00:00]} Rd7 {[%emt 0:08:18]} 21. O-O-O {[%emt 0:00:00]} Qe8 {[%emt 0:00:14]} 22. Kb1 {[%emt 0:00:00]} Kb8 {[%emt 0:01:13]} 23. Be3 {[%emt 0:00:00]} c5 {[%emt 0:10:33]} 24. Bf2 {[%emt 0:00:00]} Rh7 {[%emt 0:02:06]} 25. Qc2 {[%emt 0:00:00]} Nf4 {[%emt 0:02:56]} 26. Nxf4 {[%emt 0:00:00]} exf4 {[%emt 0:00:07]} 27. d4 {[%emt 0:00:00]} cxd4 {[%emt 0:01:08]} 28. Bxd4 {[%emt 0:00:00]} Bxd4 {[%emt 0:01:19]} 29. Rxd4 {[%emt 0:00:00]} Qe7 {[%emt 0:00:06]} 30. Rhd1 {[%emt 0:00:00]} Rd8 {[%emt 0:02:53]} 31. Qd3 {[%emt 0:00:00]} h5 {[%emt 0:01:02]} 32. gxh5 {[%emt 0:00:00]} Rxh5 {[%emt 0:00:25]} 33. Rxd6 {[%emt 0:00:00]} Rxd6 {[%emt 0:00:43]} 34. Qxd6+ {[%emt 0:00:00]} Qxd6 {[%emt 0:00:33]} 35. Rxd6 {[%emt 0:00:00]} Rh2 {[%emt 0:00:20]} 36. Rd2 {[%emt 0:00:00]} Kc7 {[%emt 0:00:15]} 37. Kc2 {[%emt 0:00:00]} g4 {[%emt 0:00:34]} 38. fxg4 {[%emt 0:00:00]} Rh4 {[%emt 0:00:01]} 39. e5 {[%emt 0:00:00]} Rxg4 {[%emt 0:00:01]} 40. Kd3 {[%emt 0:00:00]} a5 {[%emt 0:02:13]} 41. Ke4 {[%emt 0:00:00]} b6 {[%emt 0:00:17]} 42. Kf3 {[%emt 0:00:00]} Rg5 {[%emt 0:00:38]} 43. Kxf4 {[%emt 0:00:00]} Rf5+ {[%emt 0:00:01]} 44. Ke4 {[%emt 0:00:00]} Rg5 {[%emt 0:00:10]} 45. b3 {[%emt 0:00:00]} b5 {[%emt 0:00:40]} 46. c4 {[%emt 0:00:00]} bxc4 {[%emt 0:00:32]} 47. bxc4 {[%emt 0:00:00]} Kc6 {[%emt 0:00:48]} 48. Rd6+ {[%emt 0:02:48]} Kc5 {[%emt 0:00:03]} 49. Rxe6 {[%emt 0:00:15]} Rxg2 {[%emt 0:00:17]} 50. Re8 {[%emt 0:00:15]} Kxc4 {[%emt 0:00:34]} 51. Kf3 {[%emt 0:03:54]} Rxa2 {[%emt 0:00:25]} 1/2-1/2